fUSD/lending_fUSD_20250106
["ID","MTS","AMOUNT","RATE_DAILY","PERIOD"]
[347833098,1736145046489,-500.0,0.00010821,2]
[347833100,1736145046498,-745.52,0.00010821,2]
[347833102,1736145046507,-500.0,0.00010821,2]
[347833104,1736145046516,-500.0,0.00010821,2]
[347833106,1736145046526,-500.0,0.00010821,2]
[347833108,1736145046535,-500.0,0.00010821,2]
[347833110,1736145046545,-599.3,0.00010821,2]
[347833112,1736145046554,-500.0,0.00010821,2]
[347833114,1736145046563,-693.0,0.00010821,2]
[347833116,1736145046572,-500.0,0.00010821,2]
[347833118,1736145046582,-500.0,0.00010821,2]
[347833120,1736145046592,-617.65,0.00010821,2]
[347833122,1736145046601,-1719.61,0.00010821,2]
[347833124,1736145046611,-500.0,0.00010821,2]
[347833126,1736145046620,-2070.26,0.00010821,2]
[347833128,1736145046629,-500.0,0.00010821,2]
[347833130,1736145046639,-659.53,0.00010821,2]
[347833132,1736145046648,-852.96,0.00010821,2]
[347833134,1736145046657,-500.0,0.00010821,2]
[347833136,1736145046667,-500.0,0.00010821,2]
[347833138,1736145046676,-500.0,0.00010821,2]
[347833140,1736145046685,-500.0,0.00010821,2]
[347833142,1736145046694,-500.0,0.00010821,2]
[347833144,1736145046704,-500.0,0.00010821,2]
[347833146,1736145046713,-500.0,0.00010821,2]
[347833148,1736145046722,-500.0,0.00010821,2]
[347833150,1736145046731,-1074.34,0.00010821,2]
[347833152,1736145046741,-903.44,0.00010821,2]
[347833154,1736145046750,-500.0,0.00010821,2]
[347833156,1736145046759,-503.17,0.00010821,2]
[347833158,1736145046768,-500.0,0.00010821,2]
[347833160,1736145046777,-500.0,0.00010821,2]
[347833162,1736145046786,-30000.0,0.00010868,2]
[347833164,1736145046795,-449.96365123,0.000109,2]
[347833166,1736145046804,-449.96365123,0.000109,2]
[347833168,1736145046814,-449.96365123,0.000109,2]
[347833170,1736145046822,-449.96365123,0.000109,2]
[347833172,1736145046831,-449.96365123,0.000109,2]
[347833173,1736145046841,-449.96365123,0.000109,2]
[347833175,1736145046850,-449.96365123,0.000109,2]
[347833177,1736145046858,-449.96365123,0.000109,2]
[347833179,1736145046868,-205.65850204,0.000109,2]
[347833181,1736145046877,-205.6585019,0.00010934,2]
[347833183,1736145046886,-500.0,0.00010955,2]
[347833185,1736145046896,-820.64,0.00010955,2]
[347833187,1736145046905,-500.0,0.00010955,2]
[347833189,1736145046915,-500.0,0.00010955,2]
[347833191,1736145046924,-746.84,0.00010955,2]
[347833193,1736145046933,-151.0,0.00010956,2]
[347833195,1736145046942,-151.0,0.00010956,2]
[347833197,1736145046951,-3008.9,0.00010956,2]
[347833199,1736145046961,-1583.23,0.00010956,2]
[347833201,1736145046970,-1267.23,0.00010956,2]
[347833203,1736145046979,-915.32,0.00010956,2]
[347833205,1736145046989,-900.0,0.00010956,2]
[347833207,1736145046998,-3032.42,0.00010956,2]
[347833209,1736145047007,-842.83,0.00010956,2]
[347833211,1736145047017,-500.0,0.00010956,2]
[347833213,1736145047026,-1732.71,0.00010956,2]
[347833215,1736145047035,-6388.2,0.00010956,2]
[347833217,1736145047045,-523.7,0.00010956,2]
[347833219,1736145047055,-500.0,0.00010956,2]
[347833221,1736145047063,-5781.88,0.00010956,2]
[347833223,1736145047073,-500.0,0.00010956,2]
[347833225,1736145047082,-500.0,0.00010956,2]
[347833227,1736145047093,-506.59,0.00010956,2]
[347833228,1736145047102,-285.26899356,0.00010956,2]
[347833229,1736145047110,-1181.02,0.00010956,2]
[347833230,1736145047119,-500.0,0.00010956,2]
[347833231,1736145047128,-549.52,0.00010956,2]
[347833232,1736145047137,-500.0,0.00010956,2]
[347833233,1736145047150,-500.0,0.00010956,2]
[347833234,1736145047159,-500.0,0.00010956,2]
[347833235,1736145047169,-2164.86,0.00010956,2]
[347833236,1736145047179,-500.0,0.00010956,2]
[347833238,1736145047189,-500.0,0.00010956,2]
[347833240,1736145047199,-500.0,0.00010956,2]
[347833242,1736145047208,-607.31,0.00010956,2]
[347833244,1736145047219,-500.0,0.00010956,2]
[347833246,1736145047228,-3608.63,0.00010956,2]
[347833248,1736145047237,-500.0,0.00010956,2]
[347833250,1736145047246,-1817.72,0.00010956,2]
[347833252,1736145047255,-500.0,0.00010956,2]
[347833254,1736145047264,-500.0,0.00010956,2]
[347833256,1736145047274,-1748.04,0.00010956,2]
[347833258,1736145047283,-500.0,0.00010956,2]
[347833260,1736145047293,-3247.46,0.00010956,2]
[347833262,1736145047302,-594.02,0.00010956,2]
[347833264,1736145047311,-212.3602807,0.00010956,2]
[347833266,1736145047320,-8147.86,0.00010956,2]
[347833268,1736145047330,-500.0,0.00010956,2]
[347833270,1736145047339,-500.0,0.00010956,2]
[347833272,1736145047349,-574.78,0.00010956,2]
[347833274,1736145047358,-702.13,0.00010956,2]
[347833276,1736145047367,-541.15,0.00010956,2]
[347833278,1736145047377,-500.0,0.00010956,2]
[347833280,1736145047387,-1342.65,0.00010956,2]
[347833282,1736145047396,-4597.27,0.00010956,2]
[347833284,1736145047405,-535.67,0.00010956,2]
[347833285,1736145047415,-500.0,0.00010956,2]
[347833287,1736145047425,-500.0,0.00010956,2]
[347833289,1736145047434,-579.95,0.00010956,2]
[347833291,1736145047443,-1041.94,0.00010956,2]
[347833293,1736145047452,-1462.91,0.00010956,2]
[347833295,1736145047461,-500.0,0.00010956,2]
[347833297,1736145047470,-3292.73,0.00010956,2]
[347833299,1736145047479,-2644.15,0.00010956,2]
[347833301,1736145047489,-789.11,0.00010956,2]
[347833303,1736145047498,-565.34,0.00010956,2]
[347833306,1736145047508,-1586.17,0.00010956,2]
[347833308,1736145047517,-686.5,0.00010956,2]
[347833310,1736145047526,-500.0,0.00010956,2]
[347833312,1736145047536,-2918.45,0.00010956,2]
[347833314,1736145047545,-1163.25,0.00010956,2]
[347833315,1736145047555,-500.0,0.00010956,2]
[347833318,1736145047566,-500.0,0.00010956,2]
[347833319,1736145047576,-3238.18,0.00010956,2]
[347833321,1736145047585,-709.58,0.00010956,2]
[347833323,1736145047595,-1067.05,0.00010956,2]
[347833326,1736145047604,-500.0,0.00010956,2]
[347833327,1736145047613,-808.7,0.00010956,2]
[347833330,1736145047623,-1317.98,0.00010956,2]
[347833332,1736145047633,-556.89,0.00010956,2]
[347833334,1736145047642,-3895.15,0.00010956,2]
[347833336,1736145047651,-500.0,0.00010956,2]
[347833338,1736145047660,-500.0,0.00010956,2]
[347833340,1736145047669,-500.0,0.00010957,2]
[347833342,1736145047679,-829.01,0.00010957,2]
[347833344,1736145047687,-500.0,0.00010957,2]
[347833346,1736145047697,-500.0,0.00010957,2]
[347833348,1736145047706,-500.0,0.00010957,2]
[347833350,1736145047715,-500.0,0.00010957,2]
[347833352,1736145047724,-500.0,0.00010957,2]
[347833354,1736145047732,-500.0,0.00010957,2]
[347833356,1736145047741,-500.0,0.00010957,2]
[347833358,1736145047751,-500.0,0.00010957,2]
[347833360,1736145047760,-500.0,0.00010957,2]
[347833362,1736145047770,-500.0,0.00010957,2]
[347833364,1736145047779,-500.0,0.00010957,2]
[347833365,1736145047788,-500.0,0.00010957,2]
[347833367,1736145047797,-706.26,0.00010957,2]
[347833370,1736145047806,-500.0,0.00010957,2]
[347833371,1736145047815,-850.88,0.00010957,2]
[347833373,1736145047825,-500.0,0.00010957,2]
[347833375,1736145047834,-500.0,0.00010957,2]
[347833377,1736145047844,-500.0,0.00010957,2]
[347833379,1736145047854,-500.0,0.00010957,2]
[347833382,1736145047864,-545.33,0.00010957,2]
[347833384,1736145047873,-500.0,0.00010957,2]
[347833385,1736145047883,-500.0,0.00010957,2]
[347833387,1736145047892,-500.0,0.00010957,2]
[347833389,1736145047901,-500.0,0.00010957,2]
[347833391,1736145047910,-500.0,0.00010957,2]
[347833393,1736145047919,-500.0,0.00010957,2]
[347833395,1736145047928,-500.0,0.00010957,2]
[347833397,1736145047938,-500.0,0.00010957,2]
[347833399,1736145047947,-500.0,0.00010957,2]
[347833401,1736145047956,-500.0,0.00010957,2]
[347833403,1736145047965,-500.0,0.00010957,2]
[347833405,1736145047975,-500.0,0.00010957,2]
[347833407,1736145047984,-1704.87,0.00010957,2]
[347833409,1736145047993,-740.48,0.00010957,2]
[347833411,1736145048002,-500.0,0.00010957,2]
[347833413,1736145048011,-500.0,0.00010957,2]
[347833415,1736145048020,-500.0,0.00010957,2]
[347833417,1736145048030,-500.0,0.00010957,2]
[347833419,1736145048038,-500.0,0.00010957,2]
[347833421,1736145048048,-723.73,0.00010957,2]
[347833423,1736145048057,-500.0,0.00010957,2]
[347833425,1736145048066,-500.0,0.00010957,2]
[347833427,1736145048075,-947.191641,0.00010957,2]
[347833429,1736145048084,-500.0,0.00010957,2]
[347833431,1736145048094,-500.0,0.00010957,2]
[347833433,1736145048103,-500.0,0.00010957,2]
[347833435,1736145048113,-3217.73,0.00010957,2]
[347833437,1736145048122,-500.0,0.00010957,2]
[347833439,1736145048132,-1020.462427,0.00010957,2]
[347833441,1736145048141,-500.0,0.00010957,2]
[347833443,1736145048150,-500.0,0.00010957,2]
[347833445,1736145048164,-500.0,0.00010957,2]
[347833447,1736145048176,-513.21,0.00010957,2]
[347833450,1736145048186,-500.0,0.00010957,2]
[347833451,1736145048195,-1320.61,0.00010957,2]
[347833453,1736145048207,-500.0,0.00010957,2]
[347833456,1736145048216,-500.0,0.00010957,2]
[347833457,1736145048226,-2685.74,0.00010957,2]
[347833460,1736145048236,-500.0,0.00010957,2]
[347833461,1736145048247,-500.0,0.00010957,2]
[347833463,1736145048256,-500.0,0.00010957,2]
[347833466,1736145048266,-500.0,0.00010957,2]
[347833468,1736145048276,-500.0,0.00010957,2]
[347833470,1736145048285,-2762.4,0.00010957,2]
[347833472,1736145048295,-500.0,0.00010957,2]
[347833473,1736145048304,-1599.59,0.00010957,2]
[347833476,1736145048313,-708.12,0.00010957,2]
[347833477,1736145048323,-500.0,0.00010957,2]
[347833479,1736145048332,-869.7,0.00010957,2]
[347833481,1736145048342,-500.0,0.00010957,2]
[347833483,1736145048351,-500.0,0.00010957,2]
[347833485,1736145048361,-500.0,0.00010957,2]
[347833504,1736145048528,-791.59,0.00010957,2]
[347833506,1736145048539,-502.62,0.00010957,2]
[347833508,1736145048548,-4631.55,0.00010957,2]
[347833510,1736145048558,-2387.68,0.00010957,2]
[347833512,1736145048568,-537.25,0.00010957,2]
[347833514,1736145048578,-763.01,0.00010957,2]
[347833516,1736145048587,-500.0,0.00010957,2]
[347833519,1736145048598,-1798.86,0.00010957,2]
[347833520,1736145048607,-500.0,0.00010957,2]
[347833521,1736145048617,-500.0,0.00010957,2]
[347833522,1736145048627,-1693.78,0.00010957,2]
[347833523,1736145048637,-1892.28,0.00010957,2]
[347833524,1736145048646,-500.0,0.00010957,2]
[347833525,1736145048655,-500.0,0.00010957,2]
[347833526,1736145048665,-500.0,0.00010957,2]
[347833527,1736145048673,-2671.15,0.00010957,2]
[347833528,1736145048683,-1297.35,0.00010957,2]
[347833530,1736145048692,-554.22,0.00010957,2]
[347833532,1736145048702,-500.0,0.00010957,2]
[347833534,1736145048711,-500.0,0.00010957,2]
[347833536,1736145048720,-500.0,0.00010957,2]
[347833538,1736145048729,-870.46,0.00010957,2]
[347833540,1736145048739,-500.0,0.00010957,2]
[347833542,1736145048748,-500.0,0.00010957,2]
[347833544,1736145048757,-1033.17,0.00010957,2]
[347833546,1736145048766,-500.0,0.00010957,2]
[347833548,1736145048776,-500.0,0.00010957,2]
[347833550,1736145048785,-500.0,0.00010957,2]
[347833552,1736145048795,-500.0,0.00010957,2]
[347833554,1736145048804,-500.0,0.00010957,2]
[347833556,1736145048814,-1000.0,0.00010957,2]
[347833558,1736145048823,-169.57,0.00010958,2]
[347833560,1736145048832,-500.0,0.00010958,2]
[347833562,1736145048842,-500.0,0.00010958,2]
[347833565,1736145048851,-500.0,0.00010958,2]
[347833567,1736145048861,-500.0,0.00010958,2]
[347833568,1736145048872,-500.0,0.00010958,2]
[347833570,1736145048883,-500.0,0.00010958,2]
[347833572,1736145048892,-500.0,0.00010958,2]
[347833575,1736145048903,-500.0,0.00010958,2]
[347833577,1736145048912,-500.0,0.00010958,2]
[347833579,1736145048922,-500.0,0.00010958,2]
[347833581,1736145048932,-500.0,0.00010958,2]
[347833583,1736145048942,-500.0,0.00010958,2]
[347833585,1736145048951,-500.0,0.00010958,2]
[347833587,1736145048961,-500.0,0.00010958,2]
[347833589,1736145048970,-500.0,0.00010958,2]
[347833591,1736145048980,-500.0,0.00010958,2]
[347833593,1736145048989,-500.0,0.00010958,2]
[347833594,1736145048999,-500.0,0.00010958,2]
[347833596,1736145049008,-500.0,0.00010958,2]
[347833598,1736145049017,-500.0,0.00010958,2]
[347833600,1736145049027,-500.0,0.00010958,2]
[347833602,1736145049037,-500.0,0.00010958,2]
[347833604,1736145049047,-500.0,0.00010958,2]
[347833607,1736145049057,-500.0,0.00010958,2]
[347833609,1736145049066,-500.0,0.00010958,2]
[347833610,1736145049076,-500.0,0.00010958,2]
[347833612,1736145049086,-500.0,0.00010958,2]
[347833614,1736145049095,-500.0,0.00010958,2]
[347833616,1736145049105,-202.9797631,0.00010958,2]
[347833619,1736145049114,-500.0,0.00010958,2]
[347833620,1736145049124,-500.0,0.00010958,2]
[347833622,1736145049133,-500.0,0.00010958,2]
[347833624,1736145049143,-500.0,0.00010958,2]
[347833626,1736145049152,-500.0,0.00010958,2]
[347833628,1736145049166,-500.0,0.00010958,2]
[347833630,1736145049175,-500.0,0.00010958,2]
[347833632,1736145049185,-500.0,0.00010958,2]
[347833634,1736145049194,-450.72,0.00010958,2]
[347833636,1736145049205,-500.0,0.00010958,2]
[347833639,1736145049218,-500.0,0.00010958,2]
[347833640,1736145049229,-500.0,0.00010958,2]
[347833642,1736145049238,-500.0,0.00010958,2]
[347833644,1736145049248,-500.0,0.00010958,2]
[347833646,1736145049257,-563.84,0.00010958,2]
[347833648,1736145049266,-500.0,0.00010958,2]
[347833650,1736145049276,-500.0,0.00010958,2]
[347833652,1736145049286,-441.0,0.00010958,2]
[347833654,1736145049295,-644.92037417,0.00010958,2]
[347833656,1736145049304,-500.0,0.00010958,2]
[347833658,1736145049313,-500.0,0.00010958,2]
[347833660,1736145049323,-530.84,0.00010958,2]
[347833662,1736145049332,-500.0,0.00010958,2]
[347833664,1736145049341,-500.0,0.00010958,2]
[347833666,1736145049351,-500.0,0.00010958,2]
[347833668,1736145049361,-500.0,0.00010958,2]
[347833670,1736145049370,-7500.0,0.00010958,2]
[347833672,1736145049379,-7562.40717395,0.00010958,2]
[347833674,1736145049388,-897.75,0.00010958,2]
[347833676,1736145049398,-500.0,0.00010958,2]
[347833678,1736145049407,-1677.16,0.00010958,2]
[347833680,1736145049416,-1000.54,0.00010958,2]
[347833682,1736145049426,-500.0,0.00010958,2]
[347833684,1736145049435,-500.0,0.00010958,2]
[347833686,1736145049444,-500.0,0.00010958,2]
[347833688,1736145049454,-1643.5,0.00010958,2]
[347833690,1736145049463,-500.0,0.00010958,2]
[347833692,1736145049472,-2000.0,0.00010959,2]
[347833694,1736145049481,-2000.0,0.00010959,2]
[347833696,1736145049491,-2000.0,0.00010959,2]
[347833698,1736145049499,-2000.0,0.00010959,2]
[347833700,1736145049508,-2000.0,0.00010959,2]
[347833702,1736145049518,-2000.0,0.00010959,2]
[347833704,1736145049527,-2000.0,0.00010959,2]
[347833705,1736145049536,-2000.0,0.00010959,2]
[347833708,1736145049545,-2000.0,0.00010959,2]
[347833710,1736145049554,-2000.0,0.00010959,2]
[347833711,1736145049563,-2000.0,0.00010959,2]
[347833713,1736145049572,-2000.0,0.00010959,2]
[347833715,1736145049582,-2000.0,0.00010959,2]
[347833717,1736145049591,-2000.0,0.00010959,2]
[347833719,1736145049602,-2000.0,0.00010959,2]
[347833721,1736145049611,-2000.0,0.00010959,2]
[347833724,1736145049621,-2000.0,0.00010959,2]
[347833726,1736145049631,-2000.0,0.00010959,2]
[347833727,1736145049640,-2000.0,0.00010959,2]
[347833729,1736145049649,-2000.0,0.00010959,2]
[347833731,1736145049658,-2000.0,0.00010959,2]
[347833733,1736145049667,-2000.0,0.00010959,2]
[347833736,1736145049676,-2000.0,0.00010959,2]
[347833737,1736145049685,-2000.0,0.00010959,2]
[347833740,1736145049695,-2000.0,0.00010959,2]
[347833741,1736145049704,-2000.0,0.00010959,2]
[347833743,1736145049713,-2000.0,0.00010959,2]
[347833745,1736145049722,-2000.0,0.00010959,2]
[347833747,1736145049731,-2000.0,0.00010959,2]
[347833749,1736145049740,-2000.0,0.00010959,2]
[347833751,1736145049749,-2000.0,0.00010959,2]
[347833753,1736145049758,-2000.0,0.00010959,2]
[347833755,1736145049767,-2000.0,0.00010959,2]
[347833757,1736145049776,-2000.0,0.00010959,2]
[347833759,1736145049785,-2000.0,0.00010959,2]
[347833761,1736145049795,-2000.0,0.00010959,2]
[347833763,1736145049804,-2000.0,0.00010959,2]
[347833765,1736145049814,-2000.0,0.00010959,2]
[347833767,1736145049824,-2000.0,0.00010959,2]
[347833769,1736145049833,-2000.0,0.00010959,2]
[347833771,1736145049842,-2000.0,0.00010959,2]
[347833773,1736145049851,-2000.0,0.00010959,2]
[347833775,1736145049860,-2000.0,0.00010959,2]
[347833777,1736145049870,-2000.0,0.00010959,2]
[347833779,1736145049879,-2000.0,0.00010959,2]
[347833781,1736145049888,-1614.0,0.00010959,2]
[347833783,1736145049898,-150.0,0.00010959,2]
[347833785,1736145049908,-6656.13,0.00010959,2]
[347833787,1736145049916,-205.6585019,0.00010969,2]
[347833789,1736145049926,-400.0,0.00010986,2]
[347833791,1736145049935,-18138.0,0.00011,2]
[347833793,1736145049944,-6070.0,0.00011,2]
[347833795,1736145049954,-550.0,0.00011,2]
[347833797,1736145049963,-1251.88756837,0.00011,2]
[347833799,1736145049971,-205.6585019,0.00011003,2]
[347833801,1736145049981,-205.6585019,0.00011038,2]
[347833803,1736145049990,-151.0,0.00011041,2]
[347833805,1736145049999,-151.0,0.00011041,2]
[347833806,1736145050007,-205.6585019,0.00011072,2]
[347833807,1736145050017,-169.57,0.00011095,2]
[347833808,1736145050025,-500.0,0.00011095,2]
[347833809,1736145050034,-616.75,0.00011095,2]
[347833810,1736145050043,-500.0,0.00011095,2]
[347833811,1736145050052,-500.0,0.00011095,2]
[347833812,1736145050061,-500.0,0.00011095,2]
[347833813,1736145050071,-500.0,0.00011095,2]
[347833815,1736145050080,-500.0,0.00011095,2]
[347833817,1736145050090,-539.0,0.00011095,2]
[347833819,1736145050099,-500.0,0.00011095,2]
[347833821,1736145050108,-679.67,0.00011095,2]
[347833823,1736145050117,-500.0,0.00011095,2]
[347833825,1736145050126,-500.0,0.00011095,2]
[347833827,1736145050135,-500.0,0.00011095,2]
[347833829,1736145050145,-500.0,0.00011095,2]
[347833831,1736145050155,-500.0,0.00011095,2]
[347833833,1736145050166,-500.0,0.00011095,2]
[347833835,1736145050176,-500.0,0.00011095,2]
[347833837,1736145050185,-500.0,0.00011095,2]
[347833839,1736145050195,-500.0,0.00011095,2]
[347833841,1736145050206,-500.0,0.00011095,2]
[347833843,1736145050215,-500.0,0.00011095,2]
[347833845,1736145050226,-500.0,0.00011095,2]
[347833847,1736145050236,-500.0,0.00011095,2]
[347833849,1736145050245,-500.0,0.00011095,2]
[347833851,1736145050254,-500.0,0.00011095,2]
[347833853,1736145050263,-537.04,0.00011095,2]
[347833855,1736145050273,-676.52,0.00011095,2]
[347833857,1736145050283,-742.41,0.00011095,2]
[347833859,1736145050291,-500.0,0.00011095,2]
[347833861,1736145050301,-500.0,0.00011095,2]
[347833863,1736145050310,-500.0,0.00011095,2]
[347833865,1736145050320,-500.0,0.00011095,2]
[347833867,1736145050329,-500.0,0.00011095,2]
[347833869,1736145050339,-500.0,0.00011095,2]
[347833871,1736145050349,-500.0,0.00011095,2]
[347833873,1736145050358,-1127.61,0.00011095,2]
[347833875,1736145050367,-500.0,0.00011095,2]
[347833877,1736145050376,-854.09,0.00011095,2]
[347833879,1736145050385,-1050.16,0.00011095,2]
[347833881,1736145050394,-1133.49,0.00011095,2]
[347833883,1736145050404,-500.0,0.00011095,2]
[347833885,1736145050414,-500.0,0.00011095,2]
[347833887,1736145050424,-500.0,0.00011095,2]
[347833889,1736145050433,-500.0,0.00011095,2]
[347833891,1736145050442,-500.0,0.00011095,2]
[347833893,1736145050452,-500.0,0.00011095,2]
[347833895,1736145050461,-745.52,0.00011095,2]
[347833897,1736145050471,-500.0,0.00011095,2]
[347833899,1736145050480,-500.0,0.00011095,2]
[347833901,1736145050490,-500.0,0.00011095,2]
[347833903,1736145050499,-500.0,0.00011095,2]
[347833905,1736145050509,-599.3,0.00011095,2]
[347833907,1736145050518,-500.0,0.00011095,2]
[347833909,1736145050526,-693.0,0.00011095,2]
[347833911,1736145050536,-500.0,0.00011095,2]
[347833913,1736145050545,-500.0,0.00011095,2]
[347833915,1736145050555,-617.65,0.00011095,2]
[347833917,1736145050563,-1719.61,0.00011095,2]
[347833918,1736145050572,-500.0,0.00011095,2]
[347833921,1736145050582,-2070.26,0.00011095,2]
[347833922,1736145050591,-500.0,0.00011095,2]
[347833924,1736145050600,-659.53,0.00011095,2]
[347833925,1736145050610,-852.96,0.00011095,2]
[347833927,1736145050619,-500.0,0.00011095,2]
[347833929,1736145050628,-500.0,0.00011095,2]
[347833931,1736145050638,-500.0,0.00011095,2]
[347833933,1736145050647,-500.0,0.00011095,2]
[347833935,1736145050656,-500.0,0.00011095,2]
[347833937,1736145050666,-500.0,0.00011095,2]
[347833939,1736145050675,-500.0,0.00011095,2]
[347833941,1736145050684,-500.0,0.00011095,2]
[347833943,1736145050695,-1074.34,0.00011095,2]
[347833945,1736145050705,-903.44,0.00011095,2]
[347833947,1736145050715,-500.0,0.00011095,2]
[347833949,1736145050724,-503.17,0.00011095,2]
[347833951,1736145050733,-500.0,0.00011095,2]
[347833953,1736145050743,-205.6585019,0.00011107,2]
[347833955,1736145050752,-255.0,0.00011139,2]
[347833957,1736145050762,-205.6585019,0.00011141,2]
[347833959,1736145050771,-420.0,0.00011145,2]
[347833961,1736145050780,-2351.24834755,0.00011168,2]
[347833962,1736145050790,-2351.24834755,0.00011168,2]
[347833964,1736145050799,-200.0,0.00011169,2]
[347833967,1736145050809,-2351.24834755,0.00011169,2]
[347833968,1736145050819,-200.0,0.0001117,2]
[347833971,1736145050828,-7208.87089795,0.00011171,2]
[347833973,1736145050837,-2351.24834755,0.00011174,2]
[347833974,1736145050847,-205.6585019,0.00011176,2]
[347833976,1736145050856,-200.0,0.00011177,2]
[347833978,1736145050865,-7208.87089795,0.00011179,2]
[347833980,1736145050875,-7208.87089795,0.00011183,2]
[347833982,1736145050884,-200.0,0.00011188,2]
[347833984,1736145050894,-2351.24834755,0.0001119,2]
[347833986,1736145050903,-200.0,0.00011192,2]
[347833988,1736145050912,-7208.87089795,0.00011193,2]
[347833990,1736145050922,-7208.87089795,0.00011194,2]
[347833992,1736145050931,-2351.24834755,0.00011197,2]
[347833994,1736145050940,-7208.87089795,0.00011199,2]
[347833996,1736145050949,-205.6585019,0.0001121,2]
[347833998,1736145050958,-500.0,0.00011229,2]
[347834000,1736145050967,-820.64,0.00011229,2]
[347834002,1736145050976,-500.0,0.00011229,2]
[347834004,1736145050986,-500.0,0.00011229,2]
[347834006,1736145050995,-746.84,0.00011229,2]
[347834008,1736145051004,-151.0,0.0001123,2]
[347834010,1736145051014,-151.0,0.0001123,2]
[347834012,1736145051023,-3008.9,0.0001123,2]
[347834014,1736145051032,-1583.23,0.0001123,2]
[347834016,1736145051040,-1267.23,0.0001123,2]
[347834018,1736145051050,-915.32,0.0001123,2]
[347834035,1736145051199,-900.0,0.0001123,2]
[347834037,1736145051209,-3032.42,0.0001123,2]
[347834039,1736145051218,-842.83,0.0001123,2]
[347834041,1736145051227,-500.0,0.0001123,2]
[347834043,1736145051237,-1732.71,0.0001123,2]
[347834044,1736145051247,-6388.2,0.0001123,2]
[347834047,1736145051256,-523.7,0.0001123,2]
[347834048,1736145051265,-500.0,0.0001123,2]
[347834050,1736145051274,-5781.88,0.0001123,2]
[347834052,1736145051283,-500.0,0.0001123,2]
[347834054,1736145051292,-500.0,0.0001123,2]
[347834056,1736145051302,-506.59,0.0001123,2]
[347834057,1736145051312,-1181.02,0.0001123,2]
[347834058,1736145051321,-500.0,0.0001123,2]
[347834059,1736145051330,-549.52,0.0001123,2]
[347834060,1736145051339,-500.0,0.0001123,2]
[347834061,1736145051347,-500.0,0.0001123,2]
[347834062,1736145051356,-500.0,0.0001123,2]
[347834063,1736145051365,-2164.86,0.0001123,2]
[347834064,1736145051375,-500.0,0.0001123,2]
[347834065,1736145051384,-500.0,0.0001123,2]
[347834066,1736145051393,-500.0,0.0001123,2]
[347834068,1736145051402,-607.31,0.0001123,2]
[347834070,1736145051411,-500.0,0.0001123,2]
[347834072,1736145051420,-3608.63,0.0001123,2]
[347834074,1736145051430,-500.0,0.0001123,2]
[347834076,1736145051439,-1817.72,0.0001123,2]
[347834078,1736145051448,-500.0,0.0001123,2]
[347834080,1736145051457,-500.0,0.0001123,2]
[347834082,1736145051466,-1748.04,0.0001123,2]
[347834084,1736145051476,-500.0,0.0001123,2]
[347834086,1736145051485,-3247.46,0.0001123,2]